{"text_format":"3","workbook":"xlsx","n_sheets":5,"sheets":["Огляд вечірки","Список гостей","Їжа та напої","Інші важливі відомості","План розміщення гостей"],"not_rendered":{"defined_names":9},"read":"whole","date_system":"1900"}

{"sheet":"Огляд вечірки","index":0,"n_rows":21,"n_cols":8,"rows_kept":21,"merged":[[6,3,6,4],[6,5,6,6],[9,1,9,2]]}
[]
[]
[null,"Огляд вечірки"]
[]
[]
[null,"ПОДІЯ",null,"СТИСЛИЙ ОПИС ГОСТЕЙ",{"$nulls":3},{"$f":"\"КІЛЬКІСТЬ ОЧІКУВАНИХ ПІДТВЕРДЖЕНЬ: \"&Кількість_очікуваних_підтверджень","v":"КІЛЬКІСТЬ ОЧІКУВАНИХ ПІДТВЕРДЖЕНЬ: 2"}]
[null,"75-та річниця бабусі",null,"ОГЛЯД ВІДПОВІДЕЙ НА ЗАПРОШЕННЯ",null,"ВИТРАТИ НА ГОСТЯ",null,"СУМА БЮДЖЕТУ"]
[{"$nulls":3},"Підтверджені гості","Усього підтверджено","Продукти","Інше","Усього"]
[null,"ДАТА",null,"Дорослі",{"$f":"SUMIF(Таблиця_для_гостей[ПРИЙДУТЬ?],\"=Так\",Таблиця_для_гостей[ДОРОСЛІ])","v":26},{"$f":"Таблиця_для_їжі[[#Totals],[ВАРТІСТЬ НА ДОРОСЛОГО]]","v":{"v":12.690089084110037,"d":"12.69₴"}},{"$f":"Основні_витрати_на_гостя","v":{"v":18.695652173913043,"d":"18.70₴"}},{"$f":"(Зведення_для_учасників[[#This Row],[Продукти]]+Зведення_для_учасників[[#This Row],[Інше]])*Кількість_дорослих","v":{"v":816.0292727086002,"d":"816.03₴"}}]
[null,"2011-06-14",null,"Діти",{"$f":"SUMIF(Таблиця_для_гостей[ПРИЙДУТЬ?],\"=Так\",Таблиця_для_гостей[ДІТИ])","v":20},{"$f":"Таблиця_для_їжі[[#Totals],[ВАРТІСТЬ НА ДИТИНУ]]","v":{"v":7.252884190656953,"d":"7.25₴"}},{"$f":"Основні_витрати_на_гостя","v":{"v":18.695652173913043,"d":"18.70₴"}},{"$f":"(Зведення_для_учасників[[#This Row],[Продукти]]+Зведення_для_учасників[[#This Row],[Інше]])*Кількість_дітей","v":{"v":518.9707272914,"d":"518.97₴"}}]
[{"$nulls":3},"Підсумок",{"$f":"SUBTOTAL(109,Зведення_для_учасників[Усього підтверджено])","v":46},{"$f":"\"Сер.   \"&TEXT(SUBTOTAL(101,Зведення_для_учасників[Продукти]),\"# ##0,00₴\")","v":"Сер.   9,97₴"},{"$f":"\"Сер.   \"&TEXT(SUBTOTAL(101,Зведення_для_учасників[Інше]),\"# ##0,00₴\")","v":"Сер.   18,70₴"},{"$f":"SUBTOTAL(109,Зведення_для_учасників[Усього])","v":{"v":1335,"d":"1,335.00₴"}}]
[null,"ЧАС"]
[null,"14:00–16:00"]
[]
[null,"РОЗТАШУВАННЯ",null,"СТИСЛИЙ ОПИС БЮДЖЕТУ"]
[null,"Будинок тітки Оксани",null,"ЕЛЕМЕНТ","КІЛЬКІСТЬ","СУМА БЮДЖЕТУ","ЗАГАЛЬНІ ВИТРАТИ","РІЗНИЦЯ"]
[{"$nulls":3},"Їжа та напої",{"$f":"COUNTA(Таблиця_для_їжі[ПРОДУКТИ ТА НАПОЇ – ОКРЕМІ КОМПОНЕНТИ])","v":18},{"v":500,"d":"500.00₴"},{"$f":"Таблиця_для_їжі[[#Totals],[ЗАГАЛЬНІ ВИТРАТИ]]","v":{"v":475,"d":"475.00₴"}},{"$f":"Огляд_бюджету[[#This Row],[СУМА БЮДЖЕТУ]]-Огляд_бюджету[[#This Row],[ЗАГАЛЬНІ ВИТРАТИ]]","v":{"v":25,"d":"25.00₴"}}]
[{"$nulls":3},{"$f":"Таблиця_1__заголовок","v":"Обладнання та витратні матеріали"},{"$f":"COUNTA(Таблиця_1__бюджет[Обладнання та витратні матеріали])","v":7},{"v":400,"d":"400.00₴"},{"$f":"Таблиця_1__бюджет[[#Totals],[Вартість]]","v":{"v":400,"d":"400.00₴"}},{"$f":"Огляд_бюджету[[#This Row],[СУМА БЮДЖЕТУ]]-Огляд_бюджету[[#This Row],[ЗАГАЛЬНІ ВИТРАТИ]]","v":{"v":0,"d":"0.00₴"}}]
[{"$nulls":3},{"$f":"Таблиця_2__заголовок","v":"Оздоблення"},{"$f":"COUNTA(Таблиця_2__бюджет[Оздоблення])","v":4},{"v":150,"d":"150.00₴"},{"$f":"Таблиця_2__бюджет[[#Totals],[Вартість]]","v":{"v":175,"d":"175.00₴"}},{"$f":"Огляд_бюджету[[#This Row],[СУМА БЮДЖЕТУ]]-Огляд_бюджету[[#This Row],[ЗАГАЛЬНІ ВИТРАТИ]]","v":{"v":-25,"d":"-25.00₴"}}]
[{"$nulls":3},{"$f":"Таблиця_3__заголовок","v":"Інше"},{"$f":"COUNTA(Таблиця_3__бюджет[Інше])","v":4},{"v":300,"d":"300.00₴"},{"$f":"Таблиця_3__бюджет[[#Totals],[Вартість]]","v":{"v":285,"d":"285.00₴"}},{"$f":"Огляд_бюджету[[#This Row],[СУМА БЮДЖЕТУ]]-Огляд_бюджету[[#This Row],[ЗАГАЛЬНІ ВИТРАТИ]]","v":{"v":15,"d":"15.00₴"}}]
[{"$nulls":3},"Підсумок",{"$f":"SUBTOTAL(109,Огляд_бюджету[КІЛЬКІСТЬ])","v":33},{"$f":"SUBTOTAL(109,Огляд_бюджету[СУМА БЮДЖЕТУ])","v":{"v":1350,"d":"1,350.00₴"}},{"$f":"SUBTOTAL(109,Огляд_бюджету[ЗАГАЛЬНІ ВИТРАТИ])","v":{"v":1335,"d":"1,335.00₴"}},{"$f":"SUBTOTAL(109,Огляд_бюджету[РІЗНИЦЯ])","v":{"v":15,"d":"15.00₴"}}]

{"sheet":"Список гостей","index":1,"n_rows":22,"n_cols":12,"rows_kept":22}
[]
[]
[null,"Список гостей"]
[]
[]
[]
[null,"ІМ’Я","АДРЕСА","МІСТО","КРАЇНА","ПОШТОВИЙ ІНДЕКС","НОМЕР ТЕЛЕФОНУ","ЕЛЕКТРОННА ПОШТА","ПРИЙДУТЬ?","ДІТИ","ДОРОСЛІ","УСЬОГО"]
[null,"Родина 1","Адреса 1","Місто 1","Область 1","Поштовий індекс 1","Телефон 1","Адреса електронної пошти 1","Ні",2,2,{"$f":"SUM(Таблиця_для_гостей[[#This Row],[ДІТИ]:[ДОРОСЛІ]])","v":4}]
[null,"Родина 2","Адреса 2","Місто 2","Область 2","Поштовий індекс 2","Телефон 2","Адреса електронної пошти 2","Так",1,1,{"$f":"SUM(Таблиця_для_гостей[[#This Row],[ДІТИ]:[ДОРОСЛІ]])","v":2}]
[null,"Родина 3","Адреса 3","Місто 3","Область 3","Поштовий індекс 3","Телефон 3","Адреса електронної пошти 3","Так",3,3,{"$f":"SUM(Таблиця_для_гостей[[#This Row],[ДІТИ]:[ДОРОСЛІ]])","v":6}]
[null,"Родина 4","Адреса 4","Місто 4","Область 4","Поштовий індекс 4","Телефон 4","Адреса електронної пошти 4",null,null,2,{"$f":"SUM(Таблиця_для_гостей[[#This Row],[ДІТИ]:[ДОРОСЛІ]])","v":2}]
[null,"Родина 5","Адреса 5","Місто 5","Область 5","Поштовий індекс 5","Телефон 5","Адреса електронної пошти 5","Так",4,3,{"$f":"SUM(Таблиця_для_гостей[[#This Row],[ДІТИ]:[ДОРОСЛІ]])","v":7}]
[null,"Родина 6","Адреса 6","Місто 6","Область 6","Поштовий індекс 6","Телефон 6","Адреса електронної пошти 6","Так",2,2,{"$f":"SUM(Таблиця_для_гостей[[#This Row],[ДІТИ]:[ДОРОСЛІ]])","v":4}]
[null,"Родина 7","Адреса 7","Місто 7","Область 7","Поштовий індекс 7","Телефон 7","Адреса електронної пошти 7","Так",1,4,{"$f":"SUM(Таблиця_для_гостей[[#This Row],[ДІТИ]:[ДОРОСЛІ]])","v":5}]
[null,"Родина 8","Адреса 8","Місто 8","Область 8","Поштовий індекс 8","Телефон 8","Адреса електронної пошти 8","Ні",5,3,{"$f":"SUM(Таблиця_для_гостей[[#This Row],[ДІТИ]:[ДОРОСЛІ]])","v":8}]
[null,"Родина 9","Адреса 9","Місто 9","Область 9","Поштовий індекс 9","Телефон 9","Адреса електронної пошти 9","Так",3,2,{"$f":"SUM(Таблиця_для_гостей[[#This Row],[ДІТИ]:[ДОРОСЛІ]])","v":5}]
[null,"Родина 10","Адреса 10","Місто 10","Область 10","Поштовий індекс 10","Телефон 10","Адреса електронної пошти 10","Так",null,4,{"$f":"SUM(Таблиця_для_гостей[[#This Row],[ДІТИ]:[ДОРОСЛІ]])","v":4}]
[null,"Родина 11","Адреса 11","Місто 11","Область 11","Поштовий індекс 11","Телефон 11","Адреса електронної пошти 11","Так",3,5,{"$f":"SUM(Таблиця_для_гостей[[#This Row],[ДІТИ]:[ДОРОСЛІ]])","v":8}]
[null,"Родина 12","Адреса 12","Місто 12","Область 12","Поштовий індекс 12","Телефон 12","Адреса електронної пошти 12","Ні",2,3,{"$f":"SUM(Таблиця_для_гостей[[#This Row],[ДІТИ]:[ДОРОСЛІ]])","v":5}]
[null,"Родина 13","Адреса 13","Місто 13","Область 13","Поштовий індекс 13","Телефон 13","Адреса електронної пошти 13","Так",3,2,{"$f":"SUM(Таблиця_для_гостей[[#This Row],[ДІТИ]:[ДОРОСЛІ]])","v":5}]
[null,"Родина 14","Адреса 14","Місто 14","Область 14","Поштовий індекс 14","Телефон 14","Адреса електронної пошти 14","Ні",null,1,{"$f":"SUM(Таблиця_для_гостей[[#This Row],[ДІТИ]:[ДОРОСЛІ]])","v":1}]
[null,"Родина 15","Адреса 15","Місто 15","Область 15","Поштовий індекс 15","Телефон 15","Адреса електронної пошти 15",null,null,2,{"$f":"SUM(Таблиця_для_гостей[[#This Row],[ДІТИ]:[ДОРОСЛІ]])","v":2}]

{"sheet":"Їжа та напої","index":2,"n_rows":25,"n_cols":10,"rows_kept":25}
[]
[]
[null,"Їжа та напої"]
[]
[null,"Введіть витрати та приблизну економію, щоб автоматично розрахувати загальну кількість частин і суму витрат для кожної зекономленої одиниці, залежно від загальної кількості присутніх"]
[null,"ПРОДУКТИ ТА НАПОЇ – ОКРЕМІ КОМПОНЕНТИ","ЗАГАЛЬНІ ВИТРАТИ","ПОРЦІЯ НА ДИТИНУ","ПОРЦІЯ НА ДОРОСЛОГО","УСЬОГО ПОРЦІЙ","ВАРТІСТЬ ПОСЛУГИ","ВАРТІСТЬ НА ДИТИНУ","ВАРТІСТЬ НА ДОРОСЛОГО","ПРИМІТКИ"]
[null,"Мінеральна вода",{"v":15,"d":"15.00₴"},0.5,2,{"$f":"(Таблиця_для_їжі[[#This Row],[ПОРЦІЯ НА ДИТИНУ]]*Кількість_дітей)+(Таблиця_для_їжі[[#This Row],[ПОРЦІЯ НА ДОРОСЛОГО]]*Кількість_дорослих)","v":62},{"$f":"IFERROR(Таблиця_для_їжі[[#This Row],[ЗАГАЛЬНІ ВИТРАТИ]]/Таблиця_для_їжі[[#This Row],[УСЬОГО ПОРЦІЙ]],\"\")","v":{"v":0.24193548387096775,"d":"0.24₴"}},{"$f":"IFERROR(Таблиця_для_їжі[[#This Row],[ВАРТІСТЬ ПОСЛУГИ]]*Таблиця_для_їжі[[#This Row],[ПОРЦІЯ НА ДИТИНУ]],\"\")","v":{"v":0.12096774193548387,"d":"0.12₴"}},{"$f":"IFERROR(Таблиця_для_їжі[[#This Row],[ВАРТІСТЬ ПОСЛУГИ]]*Таблиця_для_їжі[[#This Row],[ПОРЦІЯ НА ДОРОСЛОГО]],\"\")","v":{"v":0.4838709677419355,"d":"0.48₴"}},"2-літрові пляшки"]
[null,"Пакети із соком",{"v":15,"d":"15.00₴"},2,0,{"$f":"(Таблиця_для_їжі[[#This Row],[ПОРЦІЯ НА ДИТИНУ]]*Кількість_дітей)+(Таблиця_для_їжі[[#This Row],[ПОРЦІЯ НА ДОРОСЛОГО]]*Кількість_дорослих)","v":40},{"$f":"IFERROR(Таблиця_для_їжі[[#This Row],[ЗАГАЛЬНІ ВИТРАТИ]]/Таблиця_для_їжі[[#This Row],[УСЬОГО ПОРЦІЙ]],\"\")","v":{"v":0.375,"d":"0.38₴"}},{"$f":"IFERROR(Таблиця_для_їжі[[#This Row],[ВАРТІСТЬ ПОСЛУГИ]]*Таблиця_для_їжі[[#This Row],[ПОРЦІЯ НА ДИТИНУ]],\"\")","v":{"v":0.75,"d":"0.75₴"}},{"$f":"IFERROR(Таблиця_для_їжі[[#This Row],[ВАРТІСТЬ ПОСЛУГИ]]*Таблиця_для_їжі[[#This Row],[ПОРЦІЯ НА ДОРОСЛОГО]],\"\")","v":{"v":0,"d":"0.00₴"}},"Яблука та білий виноград"]
[null,"Вино",{"v":50,"d":"50.00₴"},0,2,{"$f":"(Таблиця_для_їжі[[#This Row],[ПОРЦІЯ НА ДИТИНУ]]*Кількість_дітей)+(Таблиця_для_їжі[[#This Row],[ПОРЦІЯ НА ДОРОСЛОГО]]*Кількість_дорослих)","v":52},{"$f":"IFERROR(Таблиця_для_їжі[[#This Row],[ЗАГАЛЬНІ ВИТРАТИ]]/Таблиця_для_їжі[[#This Row],[УСЬОГО ПОРЦІЙ]],\"\")","v":{"v":0.9615384615384616,"d":"0.96₴"}},{"$f":"IFERROR(Таблиця_для_їжі[[#This Row],[ВАРТІСТЬ ПОСЛУГИ]]*Таблиця_для_їжі[[#This Row],[ПОРЦІЯ НА ДИТИНУ]],\"\")","v":{"v":0,"d":"0.00₴"}},{"$f":"IFERROR(Таблиця_для_їжі[[#This Row],[ВАРТІСТЬ ПОСЛУГИ]]*Таблиця_для_їжі[[#This Row],[ПОРЦІЯ НА ДОРОСЛОГО]],\"\")","v":{"v":1.9230769230769231,"d":"1.92₴"}}]
[null,"Торт",{"v":75,"d":"75.00₴"},1,1,{"$f":"(Таблиця_для_їжі[[#This Row],[ПОРЦІЯ НА ДИТИНУ]]*Кількість_дітей)+(Таблиця_для_їжі[[#This Row],[ПОРЦІЯ НА ДОРОСЛОГО]]*Кількість_дорослих)","v":46},{"$f":"IFERROR(Таблиця_для_їжі[[#This Row],[ЗАГАЛЬНІ ВИТРАТИ]]/Таблиця_для_їжі[[#This Row],[УСЬОГО ПОРЦІЙ]],\"\")","v":{"v":1.6304347826086956,"d":"1.63₴"}},{"$f":"IFERROR(Таблиця_для_їжі[[#This Row],[ВАРТІСТЬ ПОСЛУГИ]]*Таблиця_для_їжі[[#This Row],[ПОРЦІЯ НА ДИТИНУ]],\"\")","v":{"v":1.6304347826086956,"d":"1.63₴"}},{"$f":"IFERROR(Таблиця_для_їжі[[#This Row],[ВАРТІСТЬ ПОСЛУГИ]]*Таблиця_для_їжі[[#This Row],[ПОРЦІЯ НА ДОРОСЛОГО]],\"\")","v":{"v":1.6304347826086956,"d":"1.63₴"}},"Замовити в місцевій пекарні"]
[null,"Морозиво",{"v":20,"d":"20.00₴"},1,1.5,{"$f":"(Таблиця_для_їжі[[#This Row],[ПОРЦІЯ НА ДИТИНУ]]*Кількість_дітей)+(Таблиця_для_їжі[[#This Row],[ПОРЦІЯ НА ДОРОСЛОГО]]*Кількість_дорослих)","v":59},{"$f":"IFERROR(Таблиця_для_їжі[[#This Row],[ЗАГАЛЬНІ ВИТРАТИ]]/Таблиця_для_їжі[[#This Row],[УСЬОГО ПОРЦІЙ]],\"\")","v":{"v":0.3389830508474576,"d":"0.34₴"}},{"$f":"IFERROR(Таблиця_для_їжі[[#This Row],[ВАРТІСТЬ ПОСЛУГИ]]*Таблиця_для_їжі[[#This Row],[ПОРЦІЯ НА ДИТИНУ]],\"\")","v":{"v":0.3389830508474576,"d":"0.34₴"}},{"$f":"IFERROR(Таблиця_для_їжі[[#This Row],[ВАРТІСТЬ ПОСЛУГИ]]*Таблиця_для_їжі[[#This Row],[ПОРЦІЯ НА ДОРОСЛОГО]],\"\")","v":{"v":0.5084745762711864,"d":"0.51₴"}}]
[null,"Розетки для десертів",{"v":15,"d":"15.00₴"},1,0,{"$f":"(Таблиця_для_їжі[[#This Row],[ПОРЦІЯ НА ДИТИНУ]]*Кількість_дітей)+(Таблиця_для_їжі[[#This Row],[ПОРЦІЯ НА ДОРОСЛОГО]]*Кількість_дорослих)","v":20},{"$f":"IFERROR(Таблиця_для_їжі[[#This Row],[ЗАГАЛЬНІ ВИТРАТИ]]/Таблиця_для_їжі[[#This Row],[УСЬОГО ПОРЦІЙ]],\"\")","v":{"v":0.75,"d":"0.75₴"}},{"$f":"IFERROR(Таблиця_для_їжі[[#This Row],[ВАРТІСТЬ ПОСЛУГИ]]*Таблиця_для_їжі[[#This Row],[ПОРЦІЯ НА ДИТИНУ]],\"\")","v":{"v":0.75,"d":"0.75₴"}},{"$f":"IFERROR(Таблиця_для_їжі[[#This Row],[ВАРТІСТЬ ПОСЛУГИ]]*Таблиця_для_їжі[[#This Row],[ПОРЦІЯ НА ДОРОСЛОГО]],\"\")","v":{"v":0,"d":"0.00₴"}},"Придбати стаканчики в упаковці: ванільне та шоколадне"]
[null,"Фаршировані гриби",{"v":32,"d":"32.00₴"},1,2,{"$f":"(Таблиця_для_їжі[[#This Row],[ПОРЦІЯ НА ДИТИНУ]]*Кількість_дітей)+(Таблиця_для_їжі[[#This Row],[ПОРЦІЯ НА ДОРОСЛОГО]]*Кількість_дорослих)","v":72},{"$f":"IFERROR(Таблиця_для_їжі[[#This Row],[ЗАГАЛЬНІ ВИТРАТИ]]/Таблиця_для_їжі[[#This Row],[УСЬОГО ПОРЦІЙ]],\"\")","v":{"v":0.4444444444444444,"d":"0.44₴"}},{"$f":"IFERROR(Таблиця_для_їжі[[#This Row],[ВАРТІСТЬ ПОСЛУГИ]]*Таблиця_для_їжі[[#This Row],[ПОРЦІЯ НА ДИТИНУ]],\"\")","v":{"v":0.4444444444444444,"d":"0.44₴"}},{"$f":"IFERROR(Таблиця_для_їжі[[#This Row],[ВАРТІСТЬ ПОСЛУГИ]]*Таблиця_для_їжі[[#This Row],[ПОРЦІЯ НА ДОРОСЛОГО]],\"\")","v":{"v":0.8888888888888888,"d":"0.89₴"}},"Шампіньйони, фаршировані вершковим сиром і ковбасою"]
[null,"Бутерброди",{"v":22,"d":"22.00₴"},0,3,{"$f":"(Таблиця_для_їжі[[#This Row],[ПОРЦІЯ НА ДИТИНУ]]*Кількість_дітей)+(Таблиця_для_їжі[[#This Row],[ПОРЦІЯ НА ДОРОСЛОГО]]*Кількість_дорослих)","v":78},{"$f":"IFERROR(Таблиця_для_їжі[[#This Row],[ЗАГАЛЬНІ ВИТРАТИ]]/Таблиця_для_їжі[[#This Row],[УСЬОГО ПОРЦІЙ]],\"\")","v":{"v":0.28205128205128205,"d":"0.28₴"}},{"$f":"IFERROR(Таблиця_для_їжі[[#This Row],[ВАРТІСТЬ ПОСЛУГИ]]*Таблиця_для_їжі[[#This Row],[ПОРЦІЯ НА ДИТИНУ]],\"\")","v":{"v":0,"d":"0.00₴"}},{"$f":"IFERROR(Таблиця_для_їжі[[#This Row],[ВАРТІСТЬ ПОСЛУГИ]]*Таблиця_для_їжі[[#This Row],[ПОРЦІЯ НА ДОРОСЛОГО]],\"\")","v":{"v":0.8461538461538461,"d":"0.85₴"}},"Помідори та базилік "]
[null,"Копчений лосось",{"v":50,"d":"50.00₴"},1,2,{"$f":"(Таблиця_для_їжі[[#This Row],[ПОРЦІЯ НА ДИТИНУ]]*Кількість_дітей)+(Таблиця_для_їжі[[#This Row],[ПОРЦІЯ НА ДОРОСЛОГО]]*Кількість_дорослих)","v":72},{"$f":"IFERROR(Таблиця_для_їжі[[#This Row],[ЗАГАЛЬНІ ВИТРАТИ]]/Таблиця_для_їжі[[#This Row],[УСЬОГО ПОРЦІЙ]],\"\")","v":{"v":0.6944444444444444,"d":"0.69₴"}},{"$f":"IFERROR(Таблиця_для_їжі[[#This Row],[ВАРТІСТЬ ПОСЛУГИ]]*Таблиця_для_їжі[[#This Row],[ПОРЦІЯ НА ДИТИНУ]],\"\")","v":{"v":0.6944444444444444,"d":"0.69₴"}},{"$f":"IFERROR(Таблиця_для_їжі[[#This Row],[ВАРТІСТЬ ПОСЛУГИ]]*Таблиця_для_їжі[[#This Row],[ПОРЦІЯ НА ДОРОСЛОГО]],\"\")","v":{"v":1.3888888888888888,"d":"1.39₴"}}]
[null,"Бублики",{"v":20,"d":"20.00₴"},1,2,{"$f":"(Таблиця_для_їжі[[#This Row],[ПОРЦІЯ НА ДИТИНУ]]*Кількість_дітей)+(Таблиця_для_їжі[[#This Row],[ПОРЦІЯ НА ДОРОСЛОГО]]*Кількість_дорослих)","v":72},{"$f":"IFERROR(Таблиця_для_їжі[[#This Row],[ЗАГАЛЬНІ ВИТРАТИ]]/Таблиця_для_їжі[[#This Row],[УСЬОГО ПОРЦІЙ]],\"\")","v":{"v":0.2777777777777778,"d":"0.28₴"}},{"$f":"IFERROR(Таблиця_для_їжі[[#This Row],[ВАРТІСТЬ ПОСЛУГИ]]*Таблиця_для_їжі[[#This Row],[ПОРЦІЯ НА ДИТИНУ]],\"\")","v":{"v":0.2777777777777778,"d":"0.28₴"}},{"$f":"IFERROR(Таблиця_для_їжі[[#This Row],[ВАРТІСТЬ ПОСЛУГИ]]*Таблиця_для_їжі[[#This Row],[ПОРЦІЯ НА ДОРОСЛОГО]],\"\")","v":{"v":0.5555555555555556,"d":"0.56₴"}},"4 пакети – асорті"]
[null,"Вершковий сир",{"v":10,"d":"10.00₴"},1,2,{"$f":"(Таблиця_для_їжі[[#This Row],[ПОРЦІЯ НА ДИТИНУ]]*Кількість_дітей)+(Таблиця_для_їжі[[#This Row],[ПОРЦІЯ НА ДОРОСЛОГО]]*Кількість_дорослих)","v":72},{"$f":"IFERROR(Таблиця_для_їжі[[#This Row],[ЗАГАЛЬНІ ВИТРАТИ]]/Таблиця_для_їжі[[#This Row],[УСЬОГО ПОРЦІЙ]],\"\")","v":{"v":0.1388888888888889,"d":"0.14₴"}},{"$f":"IFERROR(Таблиця_для_їжі[[#This Row],[ВАРТІСТЬ ПОСЛУГИ]]*Таблиця_для_їжі[[#This Row],[ПОРЦІЯ НА ДИТИНУ]],\"\")","v":{"v":0.1388888888888889,"d":"0.14₴"}},{"$f":"IFERROR(Таблиця_для_їжі[[#This Row],[ВАРТІСТЬ ПОСЛУГИ]]*Таблиця_для_їжі[[#This Row],[ПОРЦІЯ НА ДОРОСЛОГО]],\"\")","v":{"v":0.2777777777777778,"d":"0.28₴"}},"2 великі ящики"]
[null,"Мариновані огірки",{"v":12,"d":"12.00₴"},1,2,{"$f":"(Таблиця_для_їжі[[#This Row],[ПОРЦІЯ НА ДИТИНУ]]*Кількість_дітей)+(Таблиця_для_їжі[[#This Row],[ПОРЦІЯ НА ДОРОСЛОГО]]*Кількість_дорослих)","v":72},{"$f":"IFERROR(Таблиця_для_їжі[[#This Row],[ЗАГАЛЬНІ ВИТРАТИ]]/Таблиця_для_їжі[[#This Row],[УСЬОГО ПОРЦІЙ]],\"\")","v":{"v":0.16666666666666666,"d":"0.17₴"}},{"$f":"IFERROR(Таблиця_для_їжі[[#This Row],[ВАРТІСТЬ ПОСЛУГИ]]*Таблиця_для_їжі[[#This Row],[ПОРЦІЯ НА ДИТИНУ]],\"\")","v":{"v":0.16666666666666666,"d":"0.17₴"}},{"$f":"IFERROR(Таблиця_для_їжі[[#This Row],[ВАРТІСТЬ ПОСЛУГИ]]*Таблиця_для_їжі[[#This Row],[ПОРЦІЯ НА ДОРОСЛОГО]],\"\")","v":{"v":0.3333333333333333,"d":"0.33₴"}},"3 банки"]
[null,"Курячі крильця",{"v":45,"d":"45.00₴"},2,4,{"$f":"(Таблиця_для_їжі[[#This Row],[ПОРЦІЯ НА ДИТИНУ]]*Кількість_дітей)+(Таблиця_для_їжі[[#This Row],[ПОРЦІЯ НА ДОРОСЛОГО]]*Кількість_дорослих)","v":144},{"$f":"IFERROR(Таблиця_для_їжі[[#This Row],[ЗАГАЛЬНІ ВИТРАТИ]]/Таблиця_для_їжі[[#This Row],[УСЬОГО ПОРЦІЙ]],\"\")","v":{"v":0.3125,"d":"0.31₴"}},{"$f":"IFERROR(Таблиця_для_їжі[[#This Row],[ВАРТІСТЬ ПОСЛУГИ]]*Таблиця_для_їжі[[#This Row],[ПОРЦІЯ НА ДИТИНУ]],\"\")","v":{"v":0.625,"d":"0.63₴"}},{"$f":"IFERROR(Таблиця_для_їжі[[#This Row],[ВАРТІСТЬ ПОСЛУГИ]]*Таблиця_для_їжі[[#This Row],[ПОРЦІЯ НА ДОРОСЛОГО]],\"\")","v":{"v":1.25,"d":"1.25₴"}},"Придбати в місцевому винному магазині"]
[null,"Картопляне пюре",{"v":10,"d":"10.00₴"},4,6,{"$f":"(Таблиця_для_їжі[[#This Row],[ПОРЦІЯ НА ДИТИНУ]]*Кількість_дітей)+(Таблиця_для_їжі[[#This Row],[ПОРЦІЯ НА ДОРОСЛОГО]]*Кількість_дорослих)","v":236},{"$f":"IFERROR(Таблиця_для_їжі[[#This Row],[ЗАГАЛЬНІ ВИТРАТИ]]/Таблиця_для_їжі[[#This Row],[УСЬОГО ПОРЦІЙ]],\"\")","v":{"v":0.0423728813559322,"d":"0.04₴"}},{"$f":"IFERROR(Таблиця_для_їжі[[#This Row],[ВАРТІСТЬ ПОСЛУГИ]]*Таблиця_для_їжі[[#This Row],[ПОРЦІЯ НА ДИТИНУ]],\"\")","v":{"v":0.1694915254237288,"d":"0.17₴"}},{"$f":"IFERROR(Таблиця_для_їжі[[#This Row],[ВАРТІСТЬ ПОСЛУГИ]]*Таблиця_для_їжі[[#This Row],[ПОРЦІЯ НА ДОРОСЛОГО]],\"\")","v":{"v":0.2542372881355932,"d":"0.25₴"}},"Приготування напередодні ввечері"]
[null,"Салат «Олів’є»",{"v":14,"d":"14.00₴"},4,6,{"$f":"(Таблиця_для_їжі[[#This Row],[ПОРЦІЯ НА ДИТИНУ]]*Кількість_дітей)+(Таблиця_для_їжі[[#This Row],[ПОРЦІЯ НА ДОРОСЛОГО]]*Кількість_дорослих)","v":236},{"$f":"IFERROR(Таблиця_для_їжі[[#This Row],[ЗАГАЛЬНІ ВИТРАТИ]]/Таблиця_для_їжі[[#This Row],[УСЬОГО ПОРЦІЙ]],\"\")","v":{"v":0.059322033898305086,"d":"0.06₴"}},{"$f":"IFERROR(Таблиця_для_їжі[[#This Row],[ВАРТІСТЬ ПОСЛУГИ]]*Таблиця_для_їжі[[#This Row],[ПОРЦІЯ НА ДИТИНУ]],\"\")","v":{"v":0.23728813559322035,"d":"0.24₴"}},{"$f":"IFERROR(Таблиця_для_їжі[[#This Row],[ВАРТІСТЬ ПОСЛУГИ]]*Таблиця_для_їжі[[#This Row],[ПОРЦІЯ НА ДОРОСЛОГО]],\"\")","v":{"v":0.3559322033898305,"d":"0.36₴"}},"Приготування напередодні ввечері"]
[null,"Овочеве асорті",{"v":30,"d":"30.00₴"},4,10,{"$f":"(Таблиця_для_їжі[[#This Row],[ПОРЦІЯ НА ДИТИНУ]]*Кількість_дітей)+(Таблиця_для_їжі[[#This Row],[ПОРЦІЯ НА ДОРОСЛОГО]]*Кількість_дорослих)","v":340},{"$f":"IFERROR(Таблиця_для_їжі[[#This Row],[ЗАГАЛЬНІ ВИТРАТИ]]/Таблиця_для_їжі[[#This Row],[УСЬОГО ПОРЦІЙ]],\"\")","v":{"v":0.08823529411764706,"d":"0.09₴"}},{"$f":"IFERROR(Таблиця_для_їжі[[#This Row],[ВАРТІСТЬ ПОСЛУГИ]]*Таблиця_для_їжі[[#This Row],[ПОРЦІЯ НА ДИТИНУ]],\"\")","v":{"v":0.35294117647058826,"d":"0.35₴"}},{"$f":"IFERROR(Таблиця_для_їжі[[#This Row],[ВАРТІСТЬ ПОСЛУГИ]]*Таблиця_для_їжі[[#This Row],[ПОРЦІЯ НА ДОРОСЛОГО]],\"\")","v":{"v":0.8823529411764707,"d":"0.88₴"}},"Морква, селера, броколі, цвітна капуста, червоний і зелений перець"]
[null,"Налисники",{"v":15,"d":"15.00₴"},5,10,{"$f":"(Таблиця_для_їжі[[#This Row],[ПОРЦІЯ НА ДИТИНУ]]*Кількість_дітей)+(Таблиця_для_їжі[[#This Row],[ПОРЦІЯ НА ДОРОСЛОГО]]*Кількість_дорослих)","v":360},{"$f":"IFERROR(Таблиця_для_їжі[[#This Row],[ЗАГАЛЬНІ ВИТРАТИ]]/Таблиця_для_їжі[[#This Row],[УСЬОГО ПОРЦІЙ]],\"\")","v":{"v":0.041666666666666664,"d":"0.04₴"}},{"$f":"IFERROR(Таблиця_для_їжі[[#This Row],[ВАРТІСТЬ ПОСЛУГИ]]*Таблиця_для_їжі[[#This Row],[ПОРЦІЯ НА ДИТИНУ]],\"\")","v":{"v":0.20833333333333331,"d":"0.21₴"}},{"$f":"IFERROR(Таблиця_для_їжі[[#This Row],[ВАРТІСТЬ ПОСЛУГИ]]*Таблиця_для_їжі[[#This Row],[ПОРЦІЯ НА ДОРОСЛОГО]],\"\")","v":{"v":0.41666666666666663,"d":"0.42₴"}},"Асорті: вершковий сир, гострий сир із горіхами"]
[null,"Крекери",{"v":25,"d":"25.00₴"},5,10,{"$f":"(Таблиця_для_їжі[[#This Row],[ПОРЦІЯ НА ДИТИНУ]]*Кількість_дітей)+(Таблиця_для_їжі[[#This Row],[ПОРЦІЯ НА ДОРОСЛОГО]]*Кількість_дорослих)","v":360},{"$f":"IFERROR(Таблиця_для_їжі[[#This Row],[ЗАГАЛЬНІ ВИТРАТИ]]/Таблиця_для_їжі[[#This Row],[УСЬОГО ПОРЦІЙ]],\"\")","v":{"v":0.06944444444444445,"d":"0.07₴"}},{"$f":"IFERROR(Таблиця_для_їжі[[#This Row],[ВАРТІСТЬ ПОСЛУГИ]]*Таблиця_для_їжі[[#This Row],[ПОРЦІЯ НА ДИТИНУ]],\"\")","v":{"v":0.3472222222222222,"d":"0.35₴"}},{"$f":"IFERROR(Таблиця_для_їжі[[#This Row],[ВАРТІСТЬ ПОСЛУГИ]]*Таблиця_для_їжі[[#This Row],[ПОРЦІЯ НА ДОРОСЛОГО]],\"\")","v":{"v":0.6944444444444444,"d":"0.69₴"}},"Асорті"]
[null,"Підсумок",{"$f":"SUBTOTAL(109,Таблиця_для_їжі[ЗАГАЛЬНІ ВИТРАТИ])","v":{"v":475,"d":"475.00₴"}},{"$f":"SUBTOTAL(109,Таблиця_для_їжі[ПОРЦІЯ НА ДИТИНУ])","v":34.5},{"$f":"SUBTOTAL(109,Таблиця_для_їжі[ПОРЦІЯ НА ДОРОСЛОГО])","v":65.5},{"$f":"SUBTOTAL(109,Таблиця_для_їжі[УСЬОГО ПОРЦІЙ])","v":2393},{"$f":"SUBTOTAL(109,Таблиця_для_їжі[ВАРТІСТЬ ПОСЛУГИ])","v":{"v":6.915706603622084,"d":"6.92₴"}},{"$f":"SUBTOTAL(109,Таблиця_для_їжі[ВАРТІСТЬ НА ДИТИНУ])","v":{"v":7.252884190656953,"d":"7.25₴"}},{"$f":"SUBTOTAL(109,Таблиця_для_їжі[ВАРТІСТЬ НА ДОРОСЛОГО])","v":{"v":12.690089084110037,"d":"12.69₴"}},{"$f":"SUBTOTAL(109,Таблиця_для_їжі[ПРИМІТКИ])","v":0}]

{"sheet":"Інші важливі відомості","index":3,"n_rows":30,"n_cols":5,"rows_kept":30,"merged":[[14,1,14,4],[22,1,22,4]]}
[]
[]
[null,"Інші важливі речі"]
[]
[]
[null,"Обладнання та витратні матеріали","Вартість","Придбано","Примітки"]
[null,"Оренда приміщення або зали",{"v":250,"d":"250.00₴"},"Так"]
[null,"Столова білизна",{"v":30,"d":"30.00₴"},"Так","Оренда"]
[null,"Столи та стільці",{"v":0,"d":"0.00₴"},null,"Включно з орендою зали"]
[null,"Серветки під напої",{"v":25,"d":"25.00₴"}]
[null,"Столові серветки",{"v":20,"d":"20.00₴"},null,"Оренда"]
[null,"Столове обслуговування",{"v":50,"d":"50.00₴"},null,"Оренда"]
[null,"Посуд",{"v":25,"d":"25.00₴"},null,"Оренда"]
[null,"Підсумок",{"$f":"SUBTOTAL(109,Таблиця_1__бюджет[Вартість])","v":{"v":400,"d":"400.00₴"}}]
[]
[]
[null,"Оздоблення","Вартість","Придбано","Примітки"]
[null,"Повітряні кульки",{"v":25,"d":"25.00₴"}]
[null,"Балон гелію",{"v":50,"d":"50.00₴"},null,"Оренда"]
[null,"Центральний елемент оздоблення",{"v":100,"d":"100.00₴"},"Так","Усього 10"]
[null,"Скляні вази",{"v":0,"d":"0.00₴"},null,"Оренда в Софії"]
[null,"Підсумок",{"$f":"SUBTOTAL(109,Таблиця_2__бюджет[Вартість])","v":{"v":175,"d":"175.00₴"}}]
[]
[]
[null,"Інше","Вартість","Придбано","Примітки"]
[null,"Запрошення",{"v":50,"d":"50.00₴"},"Так"]
[null,"Поштові витрати",{"v":60,"d":"60.00₴"},"Так"]
[null,"Фотограф",{"v":125,"d":"125.00₴"},null,"2 години (14:00–16:00)"]
[null,"Сувенірі для вечірки",{"v":50,"d":"50.00₴"}]
[null,"Підсумок",{"$f":"SUBTOTAL(109,Таблиця_3__бюджет[Вартість])","v":{"v":285,"d":"285.00₴"}}]

{"sheet":"План розміщення гостей","index":4,"n_rows":43,"n_cols":34,"rows_kept":43,"merged":[[35,0,35,17],[35,19,35,33]]}
["Розміщення за столом"]
{"$rows_empty":33}
[{"$nulls":33},"*1 квадрат = приблизно 1 квадратному метру"]
["Примітки",{"$nulls":18},{"$f":"\" Усього гостей із підтвердженням: \"&Кількість_гостей_із_підтвердженням","v":" Усього гостей із підтвердженням: 46"}]
[{"$nulls":19},"Можна використати лише таку розстановку столів:"]
[{"$nulls":20},{"$f":"ROUNDUP(Кількість_гостей_із_підтвердженням/6,0)&\" круглі столи, 137 сантиметрів (6 місць)\"","v":"8 круглі столи, 137 сантиметрів (6 місць)"}]
[{"$nulls":20},{"$f":"ROUNDUP(Кількість_гостей_із_підтвердженням/8,0) &\" круглі столи, 153 сантиметри (8 місць)\"","v":"6 круглі столи, 153 сантиметри (8 місць)"}]
[{"$nulls":20},{"$f":"ROUNDUP(Кількість_гостей_із_підтвердженням/10,0)&\" круглі столи, 183 сантиметри (10 місць)\"","v":"5 круглі столи, 183 сантиметри (10 місць)"}]
[{"$nulls":20},{"$f":"ROUNDUP(Кількість_гостей_із_підтвердженням/6,0)& \" квадратні столи, 76х183 сантиметри (6 місць)\"","v":"8 квадратні столи, 76х183 сантиметри (6 місць)"}]
[{"$nulls":20},{"$f":"ROUNDUP(Кількість_гостей_із_підтвердженням/8,0)&\" квадратні столи 76х244 сантиметри (8 місць)\"","v":"6 квадратні столи 76х244 сантиметри (8 місць)"}]
[{"$nulls":19},"(Бажана відстань між столами: 1 метр)"]